Cogmind - Beta 13 @@@ ROGUE MODE // 2024.05.01 @ 21:00:36 Player: e.v.o Result: Destroyed by D-53 Grenadier with Mini Grenade Launcher Performance ------------- Evolutions (0) 0 Regions Visited (2) 400 Robots Destroyed (16) 80 Value Destroyed (395) 395 Prototype IDs (0) 0 Alien Tech Used (0) 0 Bonus (0) 0 TOTAL SCORE: 875 Bonus ------- None Cogmind --------- Core Integrity 0/250 Matter 285/300 Energy 100/100 System Corruption 3% Temperature Warning (313) Movement Walking (190) Ox1 Location -10/Mines Parts ------- > --- POWER (1) -------- (None) > --- PROPULSION (2) --- Aluminum Leg > --- UTILITY (2) ------ Medium Storage Unit > --- WEAPON (2) ------- Beam Cannon Mini Grenade Launcher > --- INVENTORY (10) --- Light Ion Engine Aluminum Leg Heat Sink Signal Interpreter Light Assault Rifle Rocket Launcher Mini Grenade Launcher Peak State ------------ > --- POWER ------------ Ion Engine > --- PROPULSION ------- Compact Wheel Compact Wheel > --- UTILITY ---------- Small Storage Unit Tractor Beam > --- WEAPON ----------- Particle Cannon Plasma Cutter > --- INVENTORY -------- Light Ion Engine Aluminum Leg Aluminum Leg EM Pulse Gun Particle Cannon Assault Rifle Mini Grenade Launcher Mini Grenade Launcher [Rating: 10] Favorites ----------- Power Ion Engine Engine Ion Engine Propulsion Aluminum Leg Leg Aluminum Leg Wheel Compact Wheel Utility Heat Sink Device Heat Sink Storage Small Storage Unit Weapon EM Pulse Gun Energy Gun EM Pulse Gun Energy Cannon Beam Cannon Ballistic Gun Assault Rifle Launcher Mini Grenade Launcher Special Weapon Plasma Cutter Build | -11 -10 -10 ------- Run | Yrd Mat Min Slots Evolved . | . . . Power . | . . . Propulsion . | . . . Utility . | . . . Weapon . | . . . Parts Attached 35 | 7 24 4 Power 3 | 1 2 . Engine 3 | 1 2 . Core . | . . . Reactor . | . . . Propulsion 13 | 2 9 2 Treads . | . . . Leg 10 | 2 6 2 Wheel 3 | . 3 . Hover . | . . . Flight . | . . . Utility 5 | 2 3 . Device 3 | 1 2 . Storage 2 | 1 1 . Processor . | . . . Hackware . | . . . Protection . | . . . Artifact . | . . . Weapon 14 | 2 10 2 Energy Gun 3 | 1 2 . Energy Cannon 6 | . 5 1 Ballistic Gun 2 | 1 1 . Ballistic Cannon . | . . . Launcher 1 | . . 1 Special Weapon 2 | . 2 . Impact Weapon . | . . . Slashing Weapon . | . . . Piercing Weapon . | . . . Special Melee Weapon . | . . . Unidentified Prototypes . | . . . Parts Lost 4 | . 1 3 Power 1 | . . 1 Propulsion 1 | . . 1 Utility 1 | . . 1 Weapon 1 | . 1 . Highest Loss Streak 3 | . 1 3 To Critical Strikes . | . . . Average Slot Usage (%) 100 | . 100 100 Engine 14 | . 14 14 Leg 19 | . 17 28 Wheel 8 | . 10 . Device 14 | . 14 14 Storage 14 | . 14 14 Energy Gun 9 | . 10 7 Energy Cannon 11 | . 10 13 Ballistic Gun 3 | . 4 . Launcher 1 | . . 7 Special Weapon 2 | . 2 . Naked Turns . | . . . Heaviest Build 22 | 15 22 22 Greatest Support 32 | 20 32 20 Greatest Overweight (x) 3 | 3 1 1 Average Overweight (x) . | . . . Largest Inventory Capacity 10 | 8 10 10 Average Capacity 8 | 7 8 10 Most Carried 10 | 6 10 9 Average Carried 6 | 3 7 7 Final Capacity 10 | 8 10 10 Final Carried 8 | 6 8 7 Class Distribution -------------------- 91% | Mutant 8% | Scavenger-Mutant Dominant Class ---------------- Mutant | -10/Materials Mutant | -10/Mines Resources | -11 -10 -10 ----------- Run | Yrd Mat Min Matter Collected 582 | 285 224 73 Remotely 223 | 102 121 . Salvage Created 616 | 100 480 36 Parts 33 | 4 29 . Haulers Intercepted . | . . . Recyclers Shooed 1 | . 1 . Parts Field Recycled . | . . . Retrieved Matter . | . . . Parts Self-Destructed . | . . . Prevented . | . . . Kills | -11 -10 -10 ------- Run | Yrd Mat Min Combat Hostiles Destroyed 20 | . 12 8 Guns 4 | . 4 . Cannons 8 | . 7 1 AOE 8 | . 1 7 Classes Destroyed 7 | 1 5 1 Worker 1 | . 1 . Recycler 1 | 1 . . Operator 1 | . 1 . Watcher 1 | . 1 . Swarmer 3 | . 3 . Grunt 9 | . 9 . Assembled 8 | . . 8 Best Kill Streak 8 | 1 4 8 Combat Bots Only 8 | . 4 8 Max Kills in Single Turn 4 | 1 2 4 Gunslinging . | . . . Exploded 4 | . 1 4 Melee . | . . . Uniques/NPCs Destroyed . | . . . Combat | -11 -10 -10 -------- Run | Yrd Mat Min Hostile Shots Fired 84 | . 69 15 Missed 21 | . 17 4 Damage Taken 940 | . 546 394 Core 253 | . 106 147 Absorbed by Shields . | . . . Core Remaining (%) 100 | 100 . . Volleys Fired 57 | 5 47 5 Largest 2 | 2 2 2 Hottest 128 | 60 128 90 Shots Fired 101 | 10 83 8 Gun 45 | 10 35 . Cannon 48 | . 43 5 Launcher 3 | . . 3 Special 5 | . 5 . Kinetic 12 | 5 7 . Thermal 53 | . 48 5 Explosive 3 | . . 3 Electromagnetic 33 | 5 28 . Robot Hit Streak 9 | 4 9 2 Robot Miss Streak 6 | 1 6 1 Penetration Max . | . . . Secondary Targets . | . . . Shots Hit Robots 48 | 7 38 3 Core Hits 32 | 2 18 12 Critical Kills . | . . . Critical Parts Destroyed . | . . . Critical Strikes . | . . . Melee Attacks . | . . . Impact . | . . . Slashing . | . . . Piercing . | . . . Sneak Attacks . | . . . Combat Hostiles . | . . . Follow-up Attacks . | . . . Damage Inflicted 1302 | 85 755 462 Guns 277 | 85 192 . Cannons 464 | . 429 35 Explosions 512 | . 91 421 Melee . | . . . Ramming 17 | . 11 6 Kinetic 58 | 47 11 . Thermal 587 | . 552 35 Explosive 421 | . . 421 Electromagnetic 219 | 38 181 . Impact . | . . . Slashing . | . . . Piercing . | . . . Highest Corruption 3 | . 3 3 Average Corruption 2 | . 2 3 Corruption Purged . | . . . Corruption Blocked . | . . . Effects 9 | . 5 4 Message Errors 1 | . . 1 Heat Flow Errors 2 | . . 2 Energy Discharges 1 | . 1 . Parts Fused 1 | . 1 . Data Loss (minor) 3 | . 2 1 Weapon Failures 1 | . 1 . Overload Shots . | . . . Overflow Damage 17 | . . 17 Projectiles . | . . . Explosions 17 | . . 17 Melee . | . . . Knockbacks . | . . . Impact . | . . . Kinetic . | . . . Secondary . | . . . Self-Inflicted Damage 60 | . 1 59 Shots 2 | . . 2 Rammed 1 | . 1 . Targets Rammed 3 | . 2 1 Kicked 2 | . 1 1 Crushed . | . . . Highest Temperature 237 | . 237 179 Average Temperature 53 | . 52 68 Received Heat Transfer 249 | . 249 . Siege Activations . | . . . Robots Corrupted . | . . . Combat Hostiles . | . . . Parts Fried . | . . . Impact Corruptions . | . . . Robots Melted . | . . . Combat Hostiles . | . . . Parts Melted 3 | . 3 . Heat Transferred 1086 | . 1012 74 Parts Sabotaged . | . . . Parts Stolen . | . . . Parts Stripped . | . . . Power Chain Reactions . | . . . Alert | -11 -10 -10 ------- Run | Yrd Mat Min Peak Influence 235 | 5 235 90 Initial 68 | . 3 68 Average 74 | 1 87 68 Maximum Alert Level 1 | . 1 . Low Security (%) 92 | 100 89 100 Level 1 7 | . 10 . Level 2 . | . . . Level 3 . | . . . Level 4 . | . . . Level 5 . | . . . High Security . | . . . Max Security . | . . . Squads Dispatched 4 | . 4 . Investigation 2 | . 2 . Extermination . | . . . Reinforcement 2 | . 2 . Assault . | . . . Garrison . | . . . Intercept . | . . . Searches Triggered . | . . . Construction Impeded . | . . . Haulers Reinforced . | . . . Active Scanning Responses . | . . . Cargo Convoy Interrupts . | . . . Stealth | -11 -10 -10 --------- Run | Yrd Mat Min Distress Signals 2 | . 2 . Communications Jammed . | . . . Distress Signals . | . . . Times Spotted 33 | . 20 13 Peak Tracking Total 11 | . 4 11 Tactical Retreats . | . . . Traps | -11 -10 -10 ------- Run | Yrd Mat Min Traps Triggered 2 | . 2 . Indirectly . | . . . Trap Hack Attempts . | . . . Triggered . | . . . Disarmed . | . . . Reprogrammed . | . . . Reused . | . . . Traps Extracted . | . . . Installed . | . . . Triggered . | . . . Machines | -11 -10 -10 ---------- Run | Yrd Mat Min Machines Disabled 4 | . 4 . Max in Single Turn 2 | . 2 . Machines Repaired . | . . . Machines Dismantled 1 | . 1 . Machines Sabotaged . | . . . Overloaded Fab Kills . | . . . Hacking | -11 -10 -10 --------- Run | Yrd Mat Min Machines Accessed 2 | . 2 . Terminals 2 | . 2 . Fabricators . | . . . Repair Stations . | . . . Recycling Units . | . . . Scanalyzers . | . . . Garrison Access . | . . . Total Hacks 9 | . 9 . Successful 2 | . 2 . Failed 7 | . 7 . Catastrophic . | . . . Database Lockouts . | . . . Manual . | . . . Terminals 9 | . 9 . Fabricators . | . . . Repair Stations . | . . . Recycling Units . | . . . Scanalyzers . | . . . Garrison Access . | . . . Terminal Hacks 2 | . 2 . Locate Traps 1 | . 1 . Hauler Manifests 1 | . 1 . Fabricator Hacks . | . . . Repair Station Hacks . | . . . Recycling Unit Hacks . | . . . Scanalyzer . | . . . Garrison Access Hacks . | . . . Unauthorized Hacks . | . . . Terminals . | . . . Fabricators . | . . . Repair Stations . | . . . Recycling Units . | . . . Scanalyzers . | . . . Garrison Access . | . . . Data Cores Recovered . | . . . Used . | . . . Hacking Detections 2 | . 2 . Full Trace Events 1 | . 1 . Feedback Events 1 | . 1 . Corruption 1 | . 1 . Feedback Blocked . | . . . Robot Schematics Acquired . | . . . Robots Built . | . . . Authchips . | . . . Time . | . . . Total Robot Build Rating . | . . . Part Schematics Acquired . | . . . Parts Built . | . . . Authchips . | . . . Time . | . . . Total Part Build Rating . | . . . Parts Repaired . | . . . Time . | . . . Parts Recycled . | . . . Recycled Matter . | . . . Retrieved Matter . | . . . Retrieved Components . | . . . Parts Scanalyzed . | . . . Part Schematics Acquired . | . . . Parts Damaged . | . . . Bothacking | -11 -10 -10 ------------ Run | Yrd Mat Min Used RIF Installer . | . . . Robots Hacked . | . . . Non-combat . | . . . Combat . | . . . Robot Hacks Applied . | . . . Relay Couplers Released . | . . . Fabnet Peak Effective % . | . . . Robots Rewired . | . . . Allies Hacked . | . . . Hacks Repelled . | . . . Allies | -11 -10 -10 -------- Run | Yrd Mat Min Total Allies . | . . . Largest Group . | . . . Highest-Rated Group . | . . . Highest-Rated Ally . | . . . Total Orders . | . . . Ally Attacks . | . . . Total Damage . | . . . Kills . | . . . Allies Corrupted . | . . . Allies Melted . | . . . Intel | -11 -10 -10 ------- Run | Yrd Mat Min Robot Analysis Total . | . . . Derelict Logs Recovered 1 | . . 1 Drone Launches . | . . . Drone Recoveries . | . . . Exploration | -11 -10 -10 ------------- Run | Yrd Mat Min Turns Passed 873 | 99 624 150 Spaces Moved 397 | 52 260 85 Core 17 | 17 . . Treads . | . . . Legs 281 | 35 161 85 Wheels 99 | . 99 . Hover . | . . . Flight . | . . . Fastest Speed 50 | 50 90 120 Average Speed 137 | 130 135 148 Slowest Speed 200 | 200 190 190 Overloaded Moves . | . . . Propulsion Burnouts . | . . . Robots Hopped . | . . . Cave-ins Triggered . | . . . Exploration Rate (%) 28 | 5 47 33 Regions Visited 2 Branch Regions 1 Pre-discovered Areas . | . . . Known Exits Taken . | . . . Unknown Exits Taken 2 | 1 1 . Scrap Searched 1 | . . 1 Spaces Dug . | . . . Terrain Destroyed 53 | . 29 24 Melee . | . . . Projectile . | . . . AOE 53 | . 29 24 Terrain Rammed . | . . . Walls Destroyed . | . . . Machines Disabled . | . . . Actions | -11 -10 -10 --------- Run | Yrd Mat Min Total 597 | 70 428 99 Wait 64 | . 64 . Move 395 | 51 259 85 Hop . | . . . Pick Up 19 | 7 10 2 Fast Attach 7 | 6 1 . Attach 2 | 1 1 . Detach . | . . . Swap 26 | . 22 4 Drop 18 | . 16 2 Fire 57 | 5 47 5 Melee . | . . . Ram 1 | . 1 . Kick 2 | . 1 1 Crush . | . . . Escape Stasis . | . . . Rewire . | . . . Trap . | . . . Miscellaneous 6 | . 6 . Route ------- -11/Scrapyard -10/Materials (discovered 2 exits: [*Mat] / [*Min]) -10/Mines History --------- Turn | Location | Event 12 | -11/Scrapyard | Discovered new exit (range 15) 100 | -11/Scrapyard | Entered Materials 314 | -10/Materials | Build established: Mutant 488 | -10/Materials | Discovered new exit (range 4) 576 | -10/Materials | Discovered new exit (range 12) 724 | -10/Materials | Entered Mines 775 | -10/Mines | Received a Rocket Launcher from a helpful Derelict 838 | -10/Mines | Learned Materials emergency access door positions 843 | -10/Mines | Assembled infested the area 863 | -10/Mines | Core integrity fell below 50% 874 | -10/Mines | Destroyed by D-53 Grenadier with Mini Grenade Launcher Last Messages --------------- 00868_ Destroyed Asb. Hover Unit. 00868_ as-33716 destroyed. 00868_ as-71873 destroyed. 00869_ The unstable cave ceiling collapses. 00869_ C-30 ARC bursts open, deploying its payload. 00869_ D-53 Grenadier unfolds itself. 00869_ Knocked back. 00869_ K-01 Serf collects debris. 00870_ Heat Sink destroyed. 00871_ as-28742 destroyed. 00871_ as-64978 destroyed. 00871_ as-87148 destroyed. 00871_ Destroyed Asb. Hover Unit. 00871_ as-59034 destroyed. 00872_ The unstable cave ceiling collapses. 00872_ K-01 Serf collects debris. 00873_ Ion Engine destroyed. 00874_ System corrupted: Heat flow error (+278). 00874_ Aluminum Leg destroyed. Map ----- +----------------------------------------------------+ | | | | | | | | | | | | | ?????????????????????????????????????????????????? | | ?????????????????????????????????????????????????? | | ?????????????????????????????????????????????????? | | ?????????????????????????????????????????????????? | | ?????????????????????????????????????????????????? | | ?????????????????????????????????????????????????? | | ?????????????????????????????????????????????????? | | ???????????####??????????????????????????????????? | | ??????????# ##?????????????????????????????????? | | ?????????? #?????????????????????????????????? | | ?####????# #??????????????????????????????????? | | ## ##??# ##????????#????????????????????????? | | ### ##??????? ????????????????????????? | | ## #??????? ####????????????????????? | | ### ????????? #????????????????????? | | ### #?????????#### ##???????????????????? | | #?????????## #???????????????????? | | #?????????# ####????????????????? | | #?????????# #????????????????? | | ##### #????# @ ##????????????????? | | ### #?#### #????????????????? | | ##?# ######### #???????????????? | | ##??# #?????## ##???????????????? | | #??## ##????#! #?????#??????????? | | #### ###### kdd # #???? #??????????? | | % r ### aa###### #??????????? | | ####?## a % #??????????? | | ###### #########????? = ########??????????? | | #????# #?????????????# ! #?????????????????? | | ?????## #?????????????## #?????????????????? | | ??????## #??????????????# #?????????????????? | | ???????## #?????????????? #?????????????????? | | ????????# #????????????? ##?????????????????? | | ????????# #????????????#####??????????????????? | | ????????? ??????????????????????????????????? | | ?????????# ?????????????????????????????????? | | ??????????## #????????????????????????????????? | | ???????????? ##????????????????????????????????? | | ???????????? ##?????????????????????????????????? | | ????????????? #??????????????????????????????????? | | ?????????????????????????????????????????????????? | | ?????????????????????????????????????????????????? | | ?????????????????????????????????????????????????? | | ?????????????????????????????????????????????????? | +----------------------------------------------------+ Best States ------------- Heat Dissipation 35 Energy Generation 10 Energy Capacity 250 Matter Stores 300 Matter Capacity 300 Sight Range 16 Terrain Scan Density 10 Evasion (%) 55 Item Schematics ----------------- None Robot Schematics ------------------ None Fabricated ------------ Nothing Alien Tech Used ----------------- None Achievements -------------- None Challenges ------------ None Game ------ Seed MasterHypercooledInitializer Manual? 0 Play Time 00:09:06 Cumulative 63.0 hours Start 2024.05.01 @ 20:52:32 End 2024.05.01 @ 21:00:36 Sessions 1 Manual Loads 0 Difficulty Rogue Special Mode None Game No. 106 Rogue 88 Adventurer 18 Explorer 0 Win Type - Total 0 Types 0/0/0/0/0/0/0/0/0 Lore% 23 Gallery% 38 Achievement% 29 Wizard Run 0 Options --------- Layout 1 ASCII 0 Keyboard 0 Movement Mouse Keybinds 0 Fullscreen 2 Font 24/Smallcaps Map View 50x35 Zoom Use 0% Tactical HUD 1 Map Filters NONE Filters NONE Steam 1 RUN: c3886aea-a763-42c6-b6bb-f13ca5ab178f